bitfinex-derivatives/quotes_BTCF0:USTF0_20250308
["timestamp","ask_amount","ask_price","bid_price","bid_amount"]
[1741400407973,0.2292,86254.0,86253.0,0.52587556]
[1741400408283,0.2292,86254.0,86253.0,0.64184596]
[1741400408487,0.08436141,86260.0,86253.0,0.52587556]
[1741400408781,0.1182,86259.0,86256.0,0.1159657]
[1741400408986,0.1182,86259.0,86257.0,0.16364564]
[1741400409186,0.1182,86259.0,86258.0,0.04474564]
[1741400409882,0.2388,86259.0,86257.0,0.1058562]
[1741400410087,0.2388,86259.0,86258.0,0.122]
[1741400410686,0.2388,86259.0,86254.0,0.1161]
[1741400410687,0.1159677,86255.0,86254.0,0.1161]
[1741400410982,0.1159691,86254.0,86253.0,0.05841936]
[1741400411183,0.2365691,86254.0,86246.0,0.122]
[1741400411385,0.1172,86253.0,86246.0,0.122]
[1741400411784,0.1159785,86247.0,86246.0,0.05896019]
[1741400411980,0.1159785,86247.0,86240.0,0.118]
[1741400411981,0.08424,86247.0,86240.0,0.118]
[1741400412178,0.3548811,86246.0,86240.0,0.118]
[1741400412879,0.3548811,86246.0,86240.0,0.06021056]
[1741400413081,0.2389,86246.0,86241.0,0.1155]
[1741400413277,0.1159812,86245.0,86241.0,0.1155]
[1741400413485,0.1159834,86244.0,86241.0,0.1155]
[1741400413792,0.3619834,86244.0,86241.0,0.1155]
[1741400413983,0.246,86244.0,86241.0,0.1155]
[1741400414183,0.1159852,86242.0,86241.0,0.1155]
[1741400414583,0.246,86244.0,86241.0,0.1155]
[1741400414788,0.361983,86244.0,86241.0,0.1155]
[1741400415182,0.1159841,86243.0,86241.0,0.1155]
[1741400415582,0.2377,86242.0,86241.0,0.1155]
[1741400415788,0.2377,86242.0,86241.0,0.2314865]
[1741400415992,0.2377,86242.0,86241.0,0.05771056]
[1741400416187,0.3608,86251.0,86241.0,0.30180347]
[1741400416388,0.08424,86251.0,86248.0,0.1159771]
[1741400416686,0.08424,86251.0,86249.0,0.1189]
[1741400416887,0.1224,86250.0,86249.0,0.2348758]
[1741400417489,0.1224,86250.0,86249.0,0.1189]
[1741400418082,0.1224,86250.0,86247.0,0.3608]
[1741400418285,0.1139,86249.0,86244.0,0.1149]
[1741400418491,0.1139,86249.0,86247.0,0.1159778]
[1741400418693,0.1139,86249.0,86248.0,0.1149]
[1741400419085,0.1139,86249.0,86248.0,0.29658766]
[1741400419488,0.36144,86280.0,86248.0,0.30714783]
[1741400419688,0.1139,86260.0,86257.0,0.3608]
[1741400419889,0.1159637,86258.0,86250.0,0.13934902]
[1741400420089,0.1139,86257.0,86250.0,0.13934902]
[1741400420284,0.1139,86257.0,86254.0,0.3608]
[1741400420483,0.1139,86257.0,86255.0,0.1235]
[1741400420692,0.08433471,86256.0,86255.0,0.1235]
[1741400420986,9.471e-05,86256.0,86254.0,0.3608]
[1741400421188,0.2404677,86255.0,86254.0,0.3608]
[1741400421393,0.3247077,86255.0,86254.0,0.3608]
[1741400421688,0.1159798,86246.0,86240.0,0.19686027]
[1741400421885,0.1245,86245.0,86244.0,0.1229]
[1741400422085,0.1245,86245.0,86244.0,0.06511056]
[1741400423186,0.1245,86245.0,86244.0,0.17761056]
[1741400423387,0.1245,86245.0,86244.0,0.1125]
[1741400423788,0.2404812,86245.0,86244.0,0.1125]
[1741400423983,0.1245,86245.0,86240.0,0.05751125]
[1741400424194,0.1245,86245.0,86239.0,0.1238]
[1741400424383,0.1159879,86240.0,86239.0,0.1238]
[1741400425087,0.1159879,86240.0,86239.0,0.06601056]
[1741400425884,0.1159879,86240.0,86235.0,0.12157389]
[1741400425885,0.1245,86245.0,86235.0,0.00017389]
[1741400426093,0.1159933,86236.0,86235.0,0.00017389]
[1741400426297,0.0842,86236.0,86229.0,0.05751876]
[1741400426598,0.0842,86236.0,86220.0,0.00231964]
[1741400426599,0.1160135,86221.0,86220.0,0.00231964]
[1741400426794,0.1160135,86221.0,86214.0,0.54336566]
[1741400426795,0.1160215,86215.0,86214.0,0.54238789]
[1741400426998,0.1160215,86215.0,86214.0,0.35344789]
[1741400427388,0.1160215,86215.0,86214.0,0.36232961]
[1741400427995,0.2660215,86215.0,86214.0,0.36232961]
[1741400428191,0.1160323,86207.0,86206.0,0.00017389]
[1741400428386,0.5610323,86207.0,86206.0,0.00017389]
[1741400431100,0.445,86207.0,86195.0,0.06038445]
[1741400431302,0.1160471,86196.0,86195.0,0.06038445]
[1741400433002,0.1160498,86194.0,86193.0,0.01336573]
[1741400433199,0.1160538,86191.0,86190.0,0.01336573]
[1741400433502,0.1725259,86193.0,86189.0,0.12020604]
[1741400433697,0.1160552,86190.0,86189.0,0.12020604]
[1741400433898,0.0842,86194.0,86189.0,0.12020604]
[1741400434096,0.1160552,86190.0,86189.0,0.0624166]
[1741400435597,0.1160552,86190.0,86189.0,0.07094062]
[1741400436490,0.0580265,86192.0,86189.0,0.07094062]
[1741400436491,0.30563868,86206.0,86189.0,0.21327799]
[1741400436690,0.30563868,86206.0,86190.0,0.13934902]
[1741400436890,0.058019,86203.0,86190.0,0.13934902]
[1741400437100,0.1961,86202.0,86190.0,0.13934902]
[1741400437303,0.2279393,86202.0,86192.0,0.13934902]
[1741400437491,0.2279393,86202.0,86195.0,0.3608]
[1741400437492,0.0842,86201.0,86195.0,0.3608]
[1741400437699,0.1160458,86197.0,86196.0,0.1165]
[1741400438402,0.1160552,86190.0,86189.0,0.00863006]
[1741400439304,0.3574552,86190.0,86189.0,0.00863006]
[1741400440198,0.1160633,86184.0,86183.0,0.06611462]
[1741400440401,0.2002633,86184.0,86183.0,0.06611462]
[1741400441098,0.4330633,86184.0,86183.0,0.06611462]
[1741400441300,0.7938633,86184.0,86183.0,0.06611462]
[1741400441605,0.1160713,86178.0,86177.0,0.00174072]
[1741400442494,0.3410713,86178.0,86177.0,0.00174072]
[1741400443295,0.1160795,86172.0,86167.0,0.11893251]
[1741400443496,0.3211817,86171.0,86168.0,0.1164]
[1741400443899,0.000174,86186.0,86179.0,0.1160693]
[1741400444091,0.000174,86186.0,86180.0,0.2375]
[1741400444092,0.2051,86183.0,86180.0,0.2375]
[1741400444906,0.0842,86183.0,86182.0,0.116066]
[1741400445095,0.084374,86186.0,86180.0,0.2375]
[1741400445300,0.000174,86186.0,86184.0,0.3608]
[1741400445496,0.000174,86186.0,86185.0,0.1116]
[1741400446306,0.000174,86186.0,86185.0,0.05381056]
[1741400446502,0.000174,86186.0,86184.0,0.3608]
[1741400446503,0.1160619,86185.0,86184.0,0.3608]
[1741400446703,0.1160619,86185.0,86180.0,0.1211]
[1741400446704,0.1160673,86181.0,86180.0,0.1211]
[1741400449300,0.1160673,86181.0,86180.0,0.06331056]
[1741400450010,0.12,86184.0,86180.0,0.17871056]
[1741400450309,0.2349,86182.0,86181.0,0.1194]
[1741400450506,0.2349,86182.0,86181.0,0.2348]
[1741400450807,0.350966,86182.0,86174.0,0.13934902]
[1741400451000,0.1160713,86178.0,86175.0,0.1154]
[1741400451909,0.1160713,86178.0,86173.0,0.000174]
[1741400452409,0.1160808,86171.0,86170.0,0.17202266]
[1741400453311,0.1166,86172.0,86170.0,0.17202266]
[1741400453510,0.1160808,86171.0,86170.0,0.17202266]
[1741400453704,0.2346808,86171.0,86170.0,0.17202266]
[1741400453900,0.1160848,86168.0,86167.0,0.05806291]
[1741400454105,0.1160875,86166.0,86165.0,8.451e-05]
[1741400454411,0.1160875,86166.0,86165.0,0.00887646]
[1741400454610,0.1160875,86166.0,86165.0,8.451e-05]
[1741400454816,0.3494875,86166.0,86165.0,8.451e-05]
[1741400455306,0.3494875,86166.0,86165.0,0.05854672]
[1741400455607,0.1160902,86164.0,86163.0,0.1172]
[1741400455812,0.2334,86166.0,86162.0,0.000174]
[1741400456018,0.0580426,86168.0,86162.0,0.06568973]
[1741400456019,0.3494915,86163.0,86162.0,0.06568973]
[1741400456206,0.3494915,86163.0,86162.0,0.05688995]
[1741400456397,0.34964116,86163.0,86162.0,0.05688995]
[1741400457809,0.71044116,86163.0,86162.0,0.000174]
[1741400458014,0.76732149,86163.0,86162.0,0.000174]
[1741400458508,0.1161225,86140.0,86134.0,0.1161305]
[1741400458708,0.1161225,86140.0,86126.0,0.0580707]
[1741400458908,0.1161225,86140.0,86124.0,0.00201973]
[1741400459103,0.3544225,86140.0,86131.0,0.1161341]
[1741400459306,0.3544225,86140.0,86133.0,0.0580656]
[1741400459512,0.3544225,86140.0,86137.0,0.00011528]
[1741400460513,0.1161239,86139.0,86137.0,0.00011528]
[1741400460716,0.1161239,86139.0,86138.0,0.0086008]
[1741400460916,0.239,86139.0,86137.0,0.00011528]
[1741400461209,0.1161252,86138.0,86137.0,0.00011528]
[1741400461410,0.1161252,86138.0,86132.0,0.3608]
[1741400461617,0.116132,86133.0,86132.0,0.00887061]
[1741400461814,0.1161347,86131.0,86130.0,0.17156845]
[1741400462117,0.1161347,86131.0,86130.0,0.05816845]
[1741400462317,0.239,86132.0,86128.0,0.1208]
[1741400462507,0.1161374,86129.0,86128.0,0.1208]
[1741400462910,0.3551374,86129.0,86128.0,0.1208]
[1741400463715,0.239,86129.0,86128.0,0.17761651]
[1741400463928,0.36144,86139.0,86128.0,0.17761651]
[1741400464115,0.2381,86138.0,86129.0,0.36734902]
[1741400464419,0.0580635,86137.0,86129.0,0.36734902]
[1741400464621,0.10365443,86155.0,86132.0,0.3608]
[1741400464821,0.1154,86154.0,86147.0,0.4769131]
[1741400465019,0.1161056,86153.0,86147.0,0.3608]
[1741400465218,0.08416,86151.0,86147.0,0.3608]
[1741400465422,0.08416,86151.0,86147.0,0.4769131]
[1741400465608,0.08416,86151.0,86150.0,0.1161091]
[1741400466915,0.10365443,86155.0,86154.0,0.1161037]
[1741400467112,0.10365443,86155.0,86149.0,0.1123]
[1741400467315,0.2252,86154.0,86153.0,0.1208]
[1741400467625,0.2252,86154.0,86153.0,0.06301056]
[1741400467821,0.2252,86154.0,86144.0,0.1166]
[1741400468123,0.1161158,86145.0,86144.0,0.1166]
[1741400468322,0.1161185,86143.0,86132.0,0.00873252]
[1741400468515,0.2002785,86143.0,86130.0,0.37824902]
[1741400468909,0.4254785,86143.0,86134.0,0.1161298]
[1741400469109,0.4254785,86143.0,86135.0,0.1218]
[1741400470515,0.30936,86143.0,86135.0,0.06418466]
[1741400470730,0.1161279,86136.0,86135.0,0.06418466]
[1741400471439,0.0580639,86136.0,86130.0,0.1171]
[1741400471619,0.116136,86130.0,86129.0,0.00174164]
[1741400471819,0.200296,86130.0,86129.0,0.00174164]
[1741400473528,0.1161441,86124.0,86123.0,8.945e-05]
[1741400473721,0.1161616,86111.0,86110.0,0.30310001]
[1741400473921,0.2003216,86111.0,86110.0,0.30310001]
[1741400474120,0.1161657,86108.0,86107.0,0.0577983]
[1741400474525,0.4769657,86108.0,86107.0,0.0577983]
[1741400474724,0.1161751,86101.0,86097.0,0.00174167]
[1741400474930,0.4769751,86101.0,86096.0,8.127e-05]
[1741400475329,0.53479081,86101.0,86096.0,8.127e-05]
[1741400475629,0.76689081,86101.0,86096.0,8.127e-05]
[1741400476632,0.76689081,86101.0,86100.0,0.04221056]
[1741400476931,0.76689081,86101.0,86100.0,0.05107616]
[1741400477225,0.1161805,86097.0,86096.0,8.127e-05]
[1741400477429,0.5611405,86097.0,86096.0,8.127e-05]
[1741400479728,0.1161925,86089.0,86083.0,0.1161989]
[1741400480026,0.1161943,86087.0,86084.0,0.2397]
[1741400480329,0.1161967,86085.0,86084.0,0.2397]
[1741400480932,0.3564967,86085.0,86084.0,0.2397]
[1741400481134,0.2403,86085.0,86084.0,0.2397]
[1741400481430,0.1161928,86088.0,86084.0,0.2397]
[1741400481633,0.0580944,86091.0,86084.0,0.2397]
[1741400481827,0.1161967,86085.0,86084.0,0.2397]
[1741400482630,0.08416,86086.0,86084.0,0.2397]
[1741400482935,0.08416,86086.0,86084.0,0.18191056]
[1741400483137,0.1161967,86085.0,86084.0,0.18191056]
[1741400483732,0.3608,86114.0,86084.0,0.55143473]
[1741400484037,0.08416,86087.0,86086.0,0.1161954]
[1741400484235,0.08416,86087.0,86086.0,0.2287954]
[1741400484829,0.08416,86087.0,86086.0,0.1126]
[1741400485829,0.08416,86091.0,86088.0,0.1161915]
[1741400486225,0.08416,86091.0,86089.0,0.1162]
[1741400486431,0.1153,86090.0,86089.0,0.1162]
[1741400487539,0.236,86090.0,86089.0,0.1162]
[1741400488040,0.1162035,86080.0,86070.0,0.17672685]
[1741400488236,0.0581008,86082.0,86072.0,0.1112]
[1741400488439,0.2274048,86079.0,86072.0,0.1112]
[1741400488839,0.2274048,86079.0,86077.0,0.35998253]
[1741400489040,0.3168662,86078.0,86077.0,0.35998253]
[1741400490335,0.20066,86078.0,86077.0,0.35998253]
[1741400491241,0.20066,86078.0,86077.0,0.58958253]
[1741400491939,0.20066,86078.0,86077.0,0.28805066]
[1741400492730,0.20066,86078.0,86077.0,0.40425816]
[1741400493133,0.20066,86078.0,86077.0,0.28805066]
[1741400493327,0.1165,86078.0,86077.0,0.28805066]
[1741400494033,0.235,86078.0,86077.0,0.28805066]
[1741400494236,0.3512062,86078.0,86077.0,0.05845066]
[1741400494440,0.3512062,86078.0,86075.0,0.3608]
[1741400494639,0.1162089,86076.0,86075.0,0.3608]
[1741400494937,0.1162089,86076.0,86071.0,0.119]
[1741400495133,0.3518103,86075.0,86072.0,0.2288]
[1741400495526,0.2356,86075.0,86072.0,0.2288]
[1741400495731,0.2356,86075.0,86072.0,0.28796001]
[1741400495931,0.2356,86075.0,86072.0,0.05916001]
[1741400496134,0.1162129,86073.0,86071.0,0.119]
[1741400496445,0.2356,86072.0,86071.0,0.119]
[1741400496627,0.2356,86072.0,86071.0,0.12750287]
[1741400497329,0.3518143,86072.0,86071.0,0.18568133]
[1741400497533,0.3518143,86072.0,86071.0,0.06668133]
[1741400497736,0.5964,86072.0,86070.0,0.0001374]
[1741400497934,0.5964,86072.0,86065.0,0.08227998]
[1741400498134,0.0581103,86068.0,86059.0,0.114]
[1741400498341,0.1162286,86062.0,86059.0,0.12266404]
[1741400498537,0.31966,86061.0,86059.0,0.12266404]
[1741400498942,0.31966,86061.0,86059.0,0.17950667]
[1741400498943,0.1162305,86060.0,86059.0,0.17950667]
[1741400499141,0.31966,86061.0,86059.0,0.17084263]
[1741400499437,0.08416,86061.0,86059.0,0.29590394]
[1741400499634,0.08416,86061.0,86060.0,0.3437305]
[1741400500238,0.08416,86061.0,86060.0,0.2275]
[1741400500945,0.08416,86061.0,86060.0,0.16971056]
[1741400502140,0.08416,86061.0,86059.0,0.06567214]
[1741400502141,0.1162305,86060.0,86059.0,0.06567214]
[1741400502338,0.2262,86060.0,86056.0,0.00174306]
[1741400502544,0.4770345,86057.0,86056.0,0.00174306]
[1741400503437,0.2262,86060.0,86056.0,0.00174306]
[1741400504044,0.2262,86060.0,86051.0,0.06357064]
[1741400504246,0.1162339,86058.0,86051.0,0.06357064]
[1741400504447,0.2423,86057.0,86051.0,0.06357064]
[1741400504645,0.3608,86055.0,86049.0,0.0978]
[1741400504842,0.3585394,86054.0,86049.0,0.05827679]
[1741400505043,0.2423,86054.0,86048.0,0.1179]
[1741400505244,0.2423,86054.0,86050.0,0.00010307]
[1741400505746,0.2423,86054.0,86053.0,0.1162399]
[1741400505940,0.2423,86054.0,86050.0,0.36090307]
[1741400505941,0.2423,86054.0,86050.0,0.00010307]
[1741400506546,0.1162407,86053.0,86050.0,0.00010307]
[1741400506748,0.2423,86054.0,86050.0,0.00010307]
[1741400507052,0.2353,86052.0,86049.0,0.00033484]
[1741400507255,0.2353,86052.0,86048.0,0.1179]
[1741400508051,0.2353,86052.0,86050.0,0.00012353]
[1741400509053,0.3515415,86052.0,86050.0,0.00012353]
[1741400509253,0.1162426,86051.0,86050.0,0.00012353]
[1741400509451,0.2353,86052.0,86050.0,0.00012353]
[1741400509750,0.235,86051.0,86050.0,0.00012353]
[1741400510150,0.235,86051.0,86048.0,0.11882512]
[1741400511139,0.235,86051.0,86050.0,0.00014704]
[1741400513046,0.235,86051.0,86049.0,0.1162443]
[1741400513247,0.235,86051.0,86048.0,0.06974043]
[1741400513647,0.235,86051.0,86048.0,0.05859103]
[1741400513850,0.235,86051.0,86042.0,0.3608]
[1741400514147,0.4354029,86051.0,86050.0,8.574e-05]
[1741400515354,0.43553129,86051.0,86050.0,8.574e-05]
[1741400515850,0.79633129,86051.0,86050.0,8.574e-05]
[1741400516046,0.68008839,86051.0,86033.0,0.30483969]
[1741400516247,0.3608,86042.0,86026.0,0.117]
[1741400516461,0.1162754,86027.0,86022.0,0.37824]
[1741400516647,0.2368,86026.0,86022.0,0.3608]
[1741400517051,0.2368,86026.0,86023.0,0.00011462]
[1741400517256,0.2368,86026.0,86025.0,0.1162778]
[1741400518255,0.2368,86026.0,86023.0,0.24505482]
[1741400518446,0.2368,86026.0,86025.0,0.1162778]
[1741400518642,0.2368,86026.0,86025.0,0.17506237]
[1741400519251,0.00017432,86033.0,86032.0,0.1162683]
[1741400519558,0.08416,86043.0,86032.0,0.1162683]
[1741400519559,0.112,86042.0,86038.0,0.1162595]
[1741400519751,0.112,86042.0,86039.0,0.5476]
[1741400520351,0.112,86042.0,86041.0,0.1162562]
[1741400521155,0.112,86042.0,86039.0,0.5486]
[1741400521358,0.112,86042.0,86039.0,0.5476]
[1741400522049,0.112,86042.0,86039.0,0.4586]
[1741400522252,0.112,86042.0,86039.0,0.40081056]
[1741400522458,0.1118,86041.0,86040.0,0.089]
[1741400523559,0.1118,86041.0,86040.0,0.2052575]
[1741400523859,0.1118,86041.0,86040.0,0.089]
[1741400524558,0.1118,86041.0,86039.0,0.3608]
[1741400524854,0.1162636,86036.0,86033.0,0.00017432]
[1741400525055,0.1162656,86034.0,86033.0,0.00017432]
[1741400525247,0.0581351,86031.0,86023.0,0.00011462]
[1741400525452,0.1162791,86024.0,86023.0,0.00011462]
[1741400525647,0.3608,86025.0,86023.0,0.00011462]
[1741400525854,0.2406,86024.0,86023.0,0.11639512]
[1741400526252,0.2406,86024.0,86023.0,0.00011462]
[1741400526454,0.2406,86024.0,86023.0,0.17505829]
[1741400526757,0.2406,86024.0,86023.0,0.11639512]
[1741400527055,0.08412,86039.0,86038.0,0.1162602]
[1741400527262,0.4846,86041.0,86039.0,0.1162585]
[1741400527462,0.08412,86044.0,86039.0,0.12497681]
[1741400527761,0.08412,86044.0,86037.0,0.1162609]
[1741400527960,0.08412,86044.0,86030.0,0.3608]
[1741400528261,0.08412,86044.0,86043.0,0.05846406]
[1741400529060,0.08412,86044.0,86043.0,0.14816406]
[1741400529258,0.1217,86045.0,86044.0,0.1162521]
[1741400529455,0.1217,86045.0,86044.0,0.2059521]
[1741400530557,0.1217,86045.0,86044.0,0.0897]
[1741400531257,0.1217,86045.0,86042.0,0.1176]
[1741400533265,0.1217,86045.0,86044.0,0.1162521]
[1741400533664,0.1217,86045.0,86043.0,0.1162525]
[1741400533858,0.1217,86045.0,86042.0,0.1176]
[1741400534259,0.05634084,86045.0,86042.0,0.05981056]
[1741400534459,0.05634084,86045.0,86042.0,0.20796526]
[1741400535359,0.05634084,86045.0,86042.0,0.09171056]
[1741400535560,0.05634084,86045.0,86044.0,0.1162521]
[1741400537468,0.05634084,86045.0,86044.0,0.05846266]
[1741400538070,0.05634084,86045.0,86044.0,0.41926266]
[1741400539273,0.05634084,86045.0,86044.0,0.3608]
[1741400539975,0.00012839,86051.0,86044.0,0.49113357]
[1741400540364,0.12192839,86051.0,86044.0,0.30301056]
[1741400540561,0.1162459,86049.0,86044.0,0.30301056]
[1741400540865,0.12192839,86051.0,86044.0,0.30301056]
[1741400541062,0.1162454,86049.0,86044.0,0.30301056]
[1741400541477,0.12192839,86051.0,86044.0,0.30301056]
[1741400541868,0.12192839,86051.0,86044.0,0.41926256]
[1741400542168,0.12192839,86051.0,86044.0,0.30301056]
[1741400542366,0.23817149,86051.0,86044.0,0.30301056]
[1741400542768,0.12192839,86051.0,86044.0,0.30301056]
[1741400543075,0.12192839,86051.0,86047.0,0.116247]
[1741400543266,0.1156,86050.0,86048.0,0.1162454]
[1741400543462,0.2271,86050.0,86048.0,0.06161056]
[1741400543961,0.2271,86050.0,86047.0,0.116247]
[1741400544773,0.2271,86050.0,86045.0,0.2296]
[1741400544978,0.00060001,86085.0,86045.0,0.2296]
[1741400544979,0.08412,86073.0,86049.0,0.3608]
[1741400545276,0.18777443,86082.0,86069.0,0.3608]
[1741400545578,0.18777443,86082.0,86072.0,0.13993202]
[1741400545779,0.18777443,86082.0,86081.0,0.1162021]
[1741400545970,0.08426873,86082.0,86081.0,0.1162021]
[1741400546170,0.00014873,86082.0,86081.0,0.11634736]
[1741400546365,0.00014873,86082.0,86081.0,0.47176199]
[1741400546569,0.00014873,86082.0,86081.0,0.48830684]
[1741400546777,0.10361444,86086.0,86085.0,0.1161967]
[1741400546975,0.0419618,86086.0,86085.0,0.1161967]
[1741400547175,0.00017432,86090.0,86085.0,0.1161967]
[1741400547373,0.04872285,86095.0,86094.0,0.1161846]
[1741400547572,0.3608,86113.0,86094.0,0.1161846]
[1741400547573,0.3608,86113.0,86099.0,0.1161778]
[1741400547771,0.05840658,86100.0,86099.0,0.1161778]
[1741400548073,0.05840658,86100.0,86099.0,0.24957224]
[1741400548474,0.03484089,86100.0,86099.0,0.24957224]
[1741400548677,0.00017432,86108.0,86107.0,0.116167]
[1741400548878,0.00017432,86108.0,86107.0,0.476967]
[1741400548879,0.11817432,86108.0,86107.0,0.476967]
[1741400549475,0.11817432,86108.0,86107.0,0.41917756]
[1741400549673,0.11817432,86108.0,86107.0,0.64637756]
[1741400550484,8.619e-05,86110.0,86107.0,0.588]
[1741400550776,0.08408,86128.0,86120.0,0.1161486]
[1741400550977,0.08408,86128.0,86121.0,0.1137]
[1741400551182,0.08408,86128.0,86121.0,0.2272]
[1741400551379,0.08408,86128.0,86121.0,0.7041481]
[1741400551567,0.08408,86128.0,86121.0,0.8202953]
[1741400551875,0.08408,86128.0,86121.0,0.76197968]
[1741400552078,8.69e-05,86129.0,86121.0,0.76197968]
[1741400552278,8.69e-05,86129.0,86122.0,0.12447142]
[1741400552475,8.69e-05,86129.0,86122.0,0.06668198]
[1741400552675,0.002,86128.0,86122.0,0.06668198]
[1741400552879,0.3608,86124.0,86121.0,0.00096]
[1741400553072,0.3608,86124.0,86116.0,0.00017421]
[1741400553073,0.1161536,86117.0,86116.0,0.00017421]
[1741400553583,0.08404,86118.0,86116.0,0.00017421]
[1741400553780,0.3407536,86117.0,86116.0,0.00017421]
[1741400554276,0.3407536,86117.0,86116.0,0.27240497]
[1741400555683,0.3407536,86117.0,86116.0,0.21461553]
[1741400557186,0.1161643,86109.0,86108.0,0.00249687]
[1741400557882,0.4769643,86109.0,86108.0,0.00249687]
[1741400558291,0.5874643,86109.0,86108.0,0.00249687]
[1741400558582,0.5801,86109.0,86095.0,0.05924141]
[1741400558789,0.11619,86090.0,86089.0,0.3608]
[1741400558990,0.1161934,86088.0,86083.0,0.1095]
[1741400559186,0.1088,86087.0,86083.0,0.1095]
[1741400559484,0.1088,86087.0,86084.0,0.1197]
[1741400559485,0.1161967,86085.0,86084.0,0.1197]
[1741400559685,0.1161967,86085.0,86084.0,0.17657245]
[1741400560591,0.1161967,86085.0,86084.0,0.05687245]
[1741400560886,0.2773972,86087.0,86079.0,0.34028845]
[1741400561077,0.2773972,86087.0,86074.0,0.2257107]
[1741400561078,0.1191,86084.0,86082.0,0.1096]
[1741400561282,0.1191,86084.0,86083.0,0.2415139]
[1741400561485,0.1191,86084.0,86083.0,0.29965792]
[1741400561685,0.1191,86084.0,86083.0,0.22675458]
[1741400562888,0.2352981,86084.0,86083.0,0.22675458]
[1741400563689,0.1191,86084.0,86083.0,0.22675458]
[1741400563888,0.1191,86084.0,86083.0,0.23554]
[1741400564694,0.1191,86084.0,86083.0,0.17652944]
[1741400567691,0.1191,86084.0,86083.0,0.11874]
[1741400570798,0.1191,86084.0,86083.0,0.06095056]
[1741400573195,0.1191,86084.0,86083.0,0.11783209]
[1741400573792,0.1191,86084.0,86083.0,0.06004265]
[1741400576900,0.1191,86084.0,86082.0,0.02606369]
[1741400577304,0.1191,86084.0,86083.0,0.12640765]
[1741400580009,0.1191,86084.0,86083.0,0.12626445]
[1741400581099,0.2352981,86084.0,86083.0,0.05764624]
[1741400581409,0.2352981,86084.0,86081.0,0.01058948]
[1741400581410,0.1162008,86082.0,86081.0,0.01058948]
[1741400581598,0.1162008,86082.0,86081.0,0.00188768]
[1741400581795,0.47711808,86082.0,86081.0,0.00014526]
[1741400582301,0.47711808,86082.0,86064.0,0.01744]
[1741400582302,0.1162156,86071.0,86055.0,0.2301]
[1741400582503,0.1162243,86065.0,86055.0,0.2301]
[1741400582692,0.1162243,86065.0,86061.0,0.12826728]
[1741400582893,0.1138,86064.0,86061.0,0.07047784]
[1741400583101,0.1138,86064.0,86062.0,0.00012342]
[1741400583502,0.1138,86064.0,86063.0,0.12826728]
[1741400585999,0.1138,86064.0,86062.0,0.00012342]
[1741400586200,0.118,86063.0,86062.0,0.00012342]
[1741400588897,0.118,86063.0,86061.0,0.00165264]
[1741400589110,0.118,86063.0,86060.0,0.47978161]
[1741400589111,0.1204,86062.0,86060.0,0.47978161]
[1741400589409,0.1204,86062.0,86060.0,0.53747138]
[1741400589609,0.1192,86061.0,86060.0,0.53747138]
[1741400590209,0.1192,86061.0,86060.0,0.53760243]
[1741400590905,0.1192,86061.0,86060.0,0.00013105]
[1741400590906,0.2354291,86061.0,86060.0,0.00013105]
[1741400592100,0.1162305,86060.0,86059.0,0.42208322]
[1741400592306,0.2267305,86060.0,86059.0,0.24018322]
[1741400593014,0.2267305,86060.0,86059.0,0.05928322]
[1741400595011,0.2267305,86060.0,86059.0,0.00149378]
[1741400595215,0.3767305,86060.0,86059.0,0.00149378]
[1741400595414,0.1162372,86055.0,86054.0,0.00979943]
[1741400595719,0.5610372,86055.0,86054.0,0.00883943]
[1741400596015,0.116244,86050.0,86049.0,0.34215551]
[1741400596316,0.67091464,86050.0,86049.0,0.33705037]
[1741400596504,0.82091464,86050.0,86049.0,0.33705037]
[1741400596906,0.82091464,86050.0,86049.0,0.34598045]
[1741400597714,0.82091464,86050.0,86049.0,0.30436325]
[1741400598106,0.82091464,86050.0,86049.0,0.23764373]
[1741400598717,0.82091464,86050.0,86049.0,0.24654267]
[1741400598914,0.82091464,86050.0,86049.0,0.23764373]
[1741400599616,0.1162507,86045.0,86041.0,0.00017431]
[1741400599914,0.4770507,86045.0,86041.0,0.00017431]
[1741400600122,0.6270507,86045.0,86041.0,0.00017431]
[1741400600510,0.4770507,86045.0,86041.0,0.00017431]
[1741400601112,0.4770507,86045.0,86032.0,0.1162676]
[1741400601113,0.1162683,86033.0,86032.0,0.1162676]
[1741400601421,0.1162683,86033.0,86031.0,0.1116]
[1741400601422,0.1162683,86032.0,86031.0,0.1116]
[1741400601826,0.1162683,86032.0,86031.0,0.2251]
[1741400602824,0.084,86033.0,86031.0,0.2251]
[1741400603228,0.1162683,86032.0,86031.0,0.2251]
[1741400603623,0.3479683,86032.0,86031.0,0.2251]
[1741400604332,0.3479683,86032.0,86031.0,0.27891056]
[1741400607229,0.3479683,86032.0,86031.0,0.22112112]
[1741400608837,0.3479683,86032.0,86031.0,0.22968243]
[1741400609041,0.3479683,86032.0,86031.0,0.22112112]
[1741400610236,0.3479683,86032.0,86031.0,0.16333168]
[1741400611332,0.3479683,86032.0,86029.0,0.00011095]
[1741400611333,0.116271,86030.0,86029.0,0.00011095]
[1741400613328,0.116271,86030.0,86029.0,0.17382151]
[1741400613524,0.116271,86030.0,86029.0,0.18253887]
[1741400613735,0.340871,86030.0,86029.0,0.17382151]
[1741400615039,0.424831,86030.0,86029.0,0.17382151]
[1741400616344,0.424831,86030.0,86029.0,0.11603207]
[1741400618144,0.1162818,86022.0,86021.0,0.0001076]
[1741400619345,0.1162869,86019.0,86016.0,0.30311816]
[1741400619540,0.2269872,86018.0,86017.0,0.228]
[1741400620545,0.22690663,86018.0,86017.0,0.228]
[1741400622336,0.22690663,86018.0,86017.0,0.17021056]
[1741400622741,0.58770663,86018.0,86017.0,0.17021056]
[1741400624349,0.58770663,86018.0,86017.0,0.1185]
[1741400625446,0.58770663,86018.0,86017.0,0.06071056]
[1741400626743,0.1162886,86017.0,86016.0,0.05802099]
[1741400626944,0.19886,86017.0,86013.0,0.00014663]
[1741400627147,0.1162926,86014.0,86013.0,0.05740074]
[1741400628347,0.1131,86016.0,86008.0,0.00135535]
[1741400628548,0.1162981,86010.0,86009.0,0.1129]
[1741400628748,0.112,86015.0,86009.0,0.219]
[1741400628960,0.1162981,86010.0,86009.0,0.219]
[1741400631453,0.1162981,86010.0,86009.0,0.16121056]
[1741400634551,0.112,86011.0,86008.0,0.60683148]
[1741400634753,0.2237994,86009.0,86008.0,0.60587148]
[1741400636151,0.2237994,86009.0,86008.0,0.61480673]
[1741400637553,0.08392,86013.0,86008.0,0.55701729]
[1741400637757,0.08392,86013.0,86009.0,0.2163]